fUST/lending_fUST_20251130
["ID","MTS","AMOUNT","RATE_DAILY","PERIOD"]
[395103745,1764432209477,690.19876973,0.00010821,2]
[395103746,1764432218122,690.19876973,0.00010821,2]
[395103747,1764432226557,690.19876973,0.00010821,2]
[395103750,1764432243546,207.87604033,0.00010766,2]
[395103751,1764432251344,207.87604033,0.00010766,2]
[395103754,1764432267727,207.87604033,0.00010766,2]
[395103759,1764432276032,207.87604033,0.00010766,2]
[395103760,1764432290974,207.87604033,0.00010766,2]
[395103761,1764432299418,207.87604033,0.00010766,2]
[395103763,1764432314331,207.87604033,0.00010766,2]
[395103764,1764432322162,207.87604033,0.00010766,2]
[395103769,1764432336916,207.87604033,0.00010766,2]
[395103770,1764432345431,207.87604033,0.00010766,2]
[395103771,1764432360940,207.87604033,0.00010766,2]
[395103772,1764432368764,207.87604033,0.00010766,2]
[395103773,1764432383961,207.87604033,0.00010766,2]
[395103774,1764432392374,207.87604033,0.00010766,2]
[395103775,1764432407803,207.87604033,0.00010766,2]
[395103777,1764432416098,207.87604033,0.00010766,2]
[395103778,1764432432428,207.87604033,0.00010766,2]
[395103779,1764432440413,207.87604033,0.00010766,2]
[395103781,1764432446108,-207.87604033,0.00010875,2]
[395103782,1764432446128,-207.87604033,0.00010985,2]
[395103783,1764432446145,-215.6739056,0.00012104,2]
[395103825,1764432632099,-198.3260944,0.00011744,2]
[395103827,1764432632108,-203.71851952,0.00011804,2]
[395103829,1764432632118,-198.3260944,0.00011863,2]
[395103831,1764432632127,-130.59564215,0.00011983,2]
[395103841,1764432638231,-500.0,0.0001199,2]
[395103842,1764432638240,-500.0,0.0001199,2]
[395103843,1764432638249,-500.0,0.0001199,2]
[395103844,1764432638258,-508.41057333,0.0001199,2]
[395103845,1764432638267,-164.58496923,0.0001199,2]
[395103846,1764432638278,-335.41503077,0.0001199,2]
[395103847,1764432638287,-500.0,0.0001199,2]
[395103848,1764432638295,-93.56842294,0.0001199,2]
[395103849,1764432638307,-406.43157706,0.0001199,2]
[395103850,1764432638316,-198.3260944,0.00012104,2]
[395103851,1764432638325,-150.0,0.00012155,2]
[395103852,1764432638334,-150.0,0.00012155,2]
[395103853,1764432638344,-798.69318847,0.00012222,2]
[395103854,1764432638446,-500.0,0.0001199,2]
[395103855,1764432638456,-320.77044793,0.00012222,2]
[395103856,1764432638465,-1200.0,0.00012227,2]
[395103857,1764432638474,-300.0,0.00012228,2]
[395103858,1764432638484,-300.0,0.00012228,2]
[395103859,1764432638493,-300.0,0.00012228,2]
[395103860,1764432638501,-1490.678183,0.00012229,2]
[395103861,1764432638510,-6512.3900512,0.00012229,2]
[395103862,1764432638519,-435.68213169,0.0001223,2]
[395103863,1764432638527,-2183.0909188,0.00012231,2]
[395103864,1764432638721,-6030.92786365,0.00012231,2]
[395103865,1764432638732,-435.0,0.00012231,2]
[395103866,1764432638743,-1442.73549134,0.00012231,2]
[395103904,1764432640258,-310.27,0.00012109,2]
[395103907,1764432640269,-890.80323467,0.00012109,2]
[395103913,1764432640317,-528.89051107,0.00012109,2]
[395103915,1764432640327,-1235.79069012,0.00012109,2]
[395103917,1764432640336,-2472.47083138,0.00012231,2]
[395103922,1764432640379,-19268.2731726,0.00012231,2]
[395103961,1764432643386,-1621.08340025,0.00012231,2]
[395103964,1764432646515,-778.77913156,0.00012231,2]
[395103985,1764433615537,17470.3214445,0.00010759,2]
[395103989,1764433637926,300.0,0.00010758,2]
[395103990,1764433644111,-300.0,0.00010867,2]
[395103991,1764433644136,-789.78649566,0.00010868,2]
[395103992,1764433660489,11366.32373288,0.00010759,2]
[395104016,1764433804904,600.0,0.00010758,2]
[395104018,1764433819114,1825.0,0.0002,30]
[395104019,1764433827086,600.0,0.00010758,2]
[395104038,1764433832405,-300.0,0.00010867,2]
[395104039,1764433832415,-300.0,0.00010867,2]
[395104040,1764433832426,-206.90660153,0.00010868,2]
[395104041,1764433832436,-437.0,0.00010977,2]
[395104042,1764433832446,-315.21894696,0.00010978,2]
[395104055,1764433838452,-5100.0,0.00010978,2]
[395104057,1764433838469,-4247.00643768,0.00010978,2]
[395104060,1764433838483,-776.68808795,0.00010978,2]
[395104064,1764433838517,-6585.4205691,0.00010978,2]
[395104067,1764433838532,-445.98740281,0.00010978,2]
[395104069,1764433838544,-216.2634545,0.00011152,2]
[395104071,1764433838556,-420.0,0.00011943,2]
[395104074,1764433838569,-500.0,0.0001199,2]
[395104076,1764433838582,-500.0,0.0001199,2]
[395104078,1764433838593,-500.0,0.0001199,2]
[395104080,1764433838604,-304.97749219,0.0001213,2]
[395104082,1764433838614,-15789.20328229,0.00012131,2]
[395104123,1764433840623,-5584.88395591,0.00012131,2]
[395104126,1764433840637,-37928.9774062,0.00012131,2]
[395104323,1764433843563,-27329.99999999,0.00012131,2]
[395104629,1764433846462,-1307.748919,0.00012131,2]
[395104633,1764433846491,-341.0,0.00012131,2]
[395105174,1764434114437,172.0,0.0001938,120]
[395105175,1764434116518,172.0,0.00020349,120]
[395105176,1764434118341,172.0,0.00021366,120]
[395105177,1764434232605,5000.0,0.00014,10]
[395105178,1764434254999,5000.0,0.00014,10]
[395105395,1764434854762,300.0,0.00010741,2]
[395105463,1764435032438,-205.7684695,0.00010851,2]
[395105464,1764435032447,-205.7684695,0.00010961,2]
[395105466,1764435032456,-300.0,0.00011071,2]
[395105467,1764435032466,-947.61885356,0.00011072,2]
[395105469,1764435032541,-779.99660122,0.00011072,2]
[395105481,1764435038626,-2132.41304471,0.00011072,2]
[395105482,1764435038734,-7990.40710091,0.00011072,2]
[395105483,1764435038744,-4319.7149031,0.00012012,2]
[395105484,1764435038753,-1777.3434437,0.00012012,2]
[395105485,1764435038764,-2306.7472791,0.00012012,2]
[395105486,1764435038775,-13093.16698615,0.00012012,2]
[395105487,1764435038787,-3500.0,0.00012012,2]
[395105771,1764435043643,-201.65310011,0.00011542,2]
[395105773,1764435043653,-1497.10689989,0.00012012,2]
[395106214,1764435173731,219.98973789,0.00010751,2]
[395106248,1764435590289,-663.5412558,0.00011049,2]
[395106249,1764435590324,-300.0,0.00011654,2]
[395106250,1764435590353,-197.62003811,0.00011842,2]
[395106251,1764435590384,-300.0,0.00011911,2]
[395106255,1764435602542,300.0,0.00011911,2]
[395106256,1764435603202,6777.68741218,0.00011793,2]
[395106257,1764435603228,10000.01,0.00011793,2]
[395106258,1764435603252,10000.01,0.00011793,2]
[395106259,1764435603276,10000.01,0.00011793,2]
[395106260,1764435603298,3252.97929853,0.00011793,2]
[395106262,1764435605853,989.0,0.00011911,2]
[395106312,1764436039121,-207.87604033,0.00011441,2]
[395106313,1764436039141,-207.87604033,0.00011557,2]
[395106314,1764436039163,-197.82515815,0.00011616,2]
[395106315,1764436039184,-17.84874745,0.0001191,2]
[395106316,1764436072142,-907.0874671,0.00011791,2]
[395106317,1764436072174,-907.0874671,0.0001191,2]
[395106318,1764436072204,-300.0,0.00011911,2]
[395106319,1764436072231,-213.48424453,0.00011911,2]
[395106320,1764436072409,667.0,0.00011911,2]
[395106321,1764436076187,667.0,0.00011792,2]
[395106323,1764436082655,300.0,0.00011911,2]
[395106518,1764436231721,-272.48857752,0.00011675,2]
[395106519,1764436231731,-272.48857752,0.00011793,2]
[395106520,1764436231740,-935.02286996,0.00011911,2]
[395106521,1764436231751,-264.97713004,0.00011911,2]
[395106522,1764436231760,-300.0,0.00011911,2]
[395106523,1764436231770,-1394.36000144,0.00011912,2]
[395106545,1764436237846,-1798.58919684,0.00011912,2]
[395106556,1764436237951,-1000.9999859,0.00011912,2]
[395106640,1764436240064,-4569.9783086,0.00011912,2]
[395106643,1764436240076,-8732.68344388,0.00011912,2]
[395106648,1764436240120,-4779.3437609,0.00011912,2]
[395106909,1764436242851,-15682.965294,0.00011912,2]
[395106916,1764436242906,-484.29175519,0.00011912,2]
[395106920,1764436243014,-2391.46310972,0.00011912,2]
[395106930,1764436245824,-1448.99051279,0.00011912,2]
[395106948,1764436538282,-1191.48974467,0.00011675,2]
[395106949,1764436538311,-300.0,0.00011811,2]
[395106950,1764437006150,-212.1219231,0.00010993,2]
[395106951,1764437006178,-196.86865499,0.00011402,2]
[395106952,1764437006207,-385.0,0.00011811,2]
[395106953,1764437006239,-300.0,0.00011811,2]
[395106957,1764437249086,-300.0,0.00011693,2]
[395106958,1764437249107,-300.0,0.00011811,2]
[395106959,1764437249127,-489.78649566,0.00011812,2]
[395107016,1764437438061,-300.0,0.00011693,2]
[395107019,1764437438071,-300.0,0.00011711,2]
[395107020,1764437438081,-119268.19326139,0.00011712,2]
[395107046,1764437440072,-714.16590829,0.00011712,2]
[395107237,1764437446034,-5100.0,0.00011712,2]
[395107238,1764437472137,-189.78649566,0.00011595,2]
[395107239,1764437472165,-300.0,0.00011711,2]
[395107241,1764437801808,10000.01,0.0001076,2]
[395107242,1764437801829,6448.8855749,0.0001076,2]
[395107243,1764437903835,880.6895328,0.0001076,2]
[395107247,1764438400258,-194.17104144,0.00011363,2]
[395107248,1764438400295,-194.17104144,0.00011536,2]
[395107286,1764438632159,-8857.6353631,0.00011381,2]
[395107288,1764438632168,-190.28762061,0.00011554,2]
[395107289,1764438632179,-300.0,0.00011611,2]
[395107292,1764438632188,-58664.4420243,0.00011612,2]
[395107543,1764438643003,-11130.4750755,0.00011612,2]
[395107545,1764438643017,-11748.45967749,0.00011612,2]
[395107547,1764438643029,-604.2168,0.00011612,2]
[395107548,1764438643040,-1833.34169242,0.00011612,2]
[395107560,1764438646255,-19405.39892497,0.00011612,2]
[395107561,1764438646267,-15140.34725795,0.00011612,2]
[395107562,1764438646362,-618.33521754,0.00011612,2]
[395107564,1764438662236,153.72,1e-05,2]
[395107565,1764438662543,153.72,1.1e-05,2]
[395107566,1764438662852,153.72,1.2e-05,2]
[395107567,1764438663964,153.72,1.3e-05,2]
[395107568,1764438664136,153.72,1.4e-05,2]
[395107569,1764438664436,153.72,1.5e-05,2]
[395107570,1764438664733,153.72,1.5e-05,2]
[395107571,1764438665020,153.72,1.6e-05,2]
[395107572,1764438665310,153.72,1.7e-05,2]
[395107573,1764438665612,153.72,1.8e-05,2]
[395107574,1764438665911,153.72,1.9e-05,2]
[395107575,1764438666207,153.72,2e-05,2]
[395107576,1764438666492,153.72,2.1e-05,2]
[395107577,1764438666781,153.72,2.2e-05,2]
[395107578,1764438667073,153.72,2.3e-05,2]
[395107579,1764438667369,153.72,2.4e-05,2]
[395107580,1764438668309,153.72,2.4e-05,2]
[395107581,1764438668631,153.72,2.5e-05,2]
[395107582,1764438669028,153.72,2.6e-05,2]
[395107583,1764438669315,153.72,2.7e-05,2]
[395107584,1764438669606,153.72,2.8e-05,2]
[395107585,1764438669887,153.72,2.9e-05,2]
[395107586,1764438670181,153.72,3e-05,2]
[395107587,1764438671407,153.72,3.1e-05,2]
[395107588,1764438671722,153.72,3.2e-05,2]
[395107589,1764438672163,153.72,3.3e-05,2]
[395107590,1764438672295,153.72,3.3e-05,2]
[395107591,1764438672673,153.72,3.4e-05,2]
[395107592,1764438673021,153.72,3.5e-05,2]
[395107593,1764438673362,153.72,3.6e-05,2]
[395107596,1764438795502,33953.35235692,0.00013561,30]
[395107597,1764439201125,243.25,0.000215,120]
[395107598,1764439208770,-661.6,0.00011267,2]
[395107599,1764439208798,-189.4818682,0.00011382,2]
[395107600,1764439208825,-633.0,0.00011611,2]
[395107601,1764439208852,-289.0,0.00011611,2]
[395107602,1764439208881,-300.0,0.00011611,2]
[395107603,1764439231653,5853.8462636,0.00011496,2]
[395107604,1764439231677,2632.96078758,0.00011496,2]
[395107605,1764439239456,7367.04921242,0.00011496,2]
[395107606,1764439239478,5694.15577108,0.00011496,2]
[395107607,1764439263063,300.0,0.00011611,2]
[395107608,1764439322355,300.0,0.00011611,2]
[395107609,1764439375343,3705.85422892,0.00011512,2]
[395107610,1764439375368,10000.01,0.00011512,2]
[395107611,1764439375393,10000.01,0.00011512,2]
[395107612,1764439375414,10000.01,0.00011512,2]
[395107613,1764439375437,10000.01,0.00011512,2]
[395107614,1764439396615,-300.0,0.00011511,2]
[395107615,1764439442309,300.0,0.00011511,2]
[395107616,1764439502862,300.0,0.00011511,2]
[395107617,1764439504842,207.87604033,0.00011397,2]
[395107618,1764439512728,207.87604033,0.00011397,2]
[395107619,1764439562222,300.0,0.00011511,2]
[395107620,1764439623302,300.0,0.00011511,2]
[395107621,1764439631110,-631.42598626,0.00011512,2]
[395107623,1764439683352,300.0,0.00011511,2]
[395107624,1764439742410,300.0,0.00011511,2]
[395107625,1764439802144,300.0,0.00011511,2]
[395107670,1764439832470,-661.6,0.00011512,2]
[395107684,1764439838485,-1192.38614843,0.00011512,2]
[395107685,1764439838497,-1501.08898084,0.00011512,2]
[395107686,1764439838509,-541.09,0.00011512,2]
[395107687,1764439838519,-21396.28431441,0.00011512,2]
[395107688,1764439838541,-1417.25,0.00011512,2]
[395107714,1764439840494,-2122.70816344,0.00011512,2]
[395107715,1764439840505,-1085.31156499,0.00011512,2]
[395107716,1764439840549,-3001.14898043,0.00011512,2]
[395107717,1764439840561,-4231.89251024,0.00011512,2]
[395107718,1764439840572,-1227.21692308,0.00011512,2]
[395107731,1764439843591,-6406.42,0.00011512,2]
[395107732,1764439843602,-9482.55617775,0.00011512,2]
[395107733,1764439843618,-1319.1704273,0.00011512,2]
[395107734,1764439843633,-1647.11929773,0.00011512,2]
[395107744,1764439846381,-333.0,0.00011512,2]
[395107745,1764439846392,-200510.27038789,0.00011512,2]
[395107746,1764439846639,-7657.58372646,0.00011512,2]
[395107747,1764439862313,300.0,0.00011511,2]
[395107748,1764439922585,300.0,0.00011511,2]
[395107749,1764439960546,254.2131585,0.00010812,2]
[395107750,1764439982407,300.0,0.00011511,2]
[395107752,1764440042697,300.0,0.00011511,2]
[395107753,1764440102242,300.0,0.00011511,2]
[395107755,1764440162463,300.0,0.00011511,2]
[395107756,1764440223069,300.0,0.00011511,2]
[395107757,1764440282253,300.0,0.00011511,2]
[395107758,1764440342323,300.0,0.00011511,2]
[395107760,1764440402246,300.0,0.00011511,2]
[395107761,1764440405911,3630.04476084,0.00011412,2]
[395107762,1764440405936,10000.01,0.00011412,2]
[395107763,1764440405960,10000.01,0.00011412,2]
[395107764,1764440416695,10000.01,0.00011298,2]
[395107765,1764440416720,10000.01,0.00011298,2]
[395107766,1764440438963,10000.01,0.00011298,2]
[395107767,1764440463225,-300.0,0.00011297,2]
[395107768,1764440466292,-8088.42305024,0.00011298,2]
[395107769,1764440469917,-1911.58694976,0.00011298,2]
[395107770,1764440482190,6176.83610048,0.00011298,2]
[395107771,1764440484738,-3823.17389952,0.00011298,2]
[395107772,1764440491238,-10000.01,0.00011298,2]
[395107775,1764440497352,2012.43138698,0.00011298,2]
[395107776,1764440505436,7987.57861302,0.00011298,2]
[395107777,1764440506618,-4412.43138698,0.00011298,2]
[395107778,1764440513518,1175.14722604,0.00011298,2]
[395107779,1764440515991,-3197.65008656,0.00011298,2]
[395107780,1764440521555,857.5991042,0.00011298,2]
[395107781,1764440523378,300.0,0.00011411,2]
[395107782,1764440529811,1650.0,0.00011298,2]
[395107783,1764440570595,797.11072268,0.00011298,2]
[395107784,1764440570618,552.88927732,0.00011298,2]
[395107785,1764440578503,450.0,0.00011298,2]
[395107786,1764440582459,150.1,1e-05,2]
[395107787,1764440582821,150.1,1.1e-05,2]
[395107788,1764440582865,150.1,1.3e-05,2]
[395107789,1764440583005,300.0,0.00011411,2]
[395107790,1764440583223,150.1,1.4e-05,2]
[395107791,1764440583519,150.1,1.5e-05,2]
[395107792,1764440583816,150.1,1.7e-05,2]
[395107793,1764440584264,150.1,1.8e-05,2]
[395107794,1764440584581,150.1,1.9e-05,2]
[395107795,1764440584923,150.1,2e-05,2]
[395107796,1764440585265,150.1,2.2e-05,2]
[395107797,1764440585593,150.1,2.3e-05,2]
[395107798,1764440585893,150.1,2.4e-05,2]
[395107799,1764440586191,150.1,2.6e-05,2]
[395107800,1764440586522,150.1,2.7e-05,2]
[395107801,1764440586831,150.1,2.8e-05,2]
[395107802,1764440587239,150.1,3e-05,2]
[395107803,1764440587580,150.1,3.1e-05,2]
[395107804,1764440587894,150.1,3.2e-05,2]
[395107805,1764440588384,150.1,3.3e-05,2]
[395107806,1764440588688,150.1,3.5e-05,2]
[395107807,1764440589050,150.1,3.6e-05,2]
[395107808,1764440642305,300.0,0.00011411,2]
[395107809,1764440643409,151.3,1e-05,2]
[395107810,1764440643723,151.3,1.1e-05,2]
[395107811,1764440644668,151.3,1.2e-05,2]
[395107812,1764440645066,151.3,1.3e-05,2]
[395107813,1764440645406,151.3,1.4e-05,2]
[395107814,1764440645937,151.3,1.5e-05,2]
[395107815,1764440646242,151.3,1.7e-05,2]
[395107816,1764440646543,151.3,1.8e-05,2]
[395107817,1764440646840,151.3,1.9e-05,2]
[395107818,1764440647310,151.3,2e-05,2]
[395107819,1764440647598,151.3,2.1e-05,2]
[395107820,1764440647946,151.3,2.2e-05,2]
[395107821,1764440648276,151.3,2.3e-05,2]
[395107822,1764440648563,151.3,2.4e-05,2]
[395107823,1764440648940,151.3,2.5e-05,2]
[395107824,1764440649268,151.3,2.6e-05,2]
[395107825,1764440649641,151.3,2.7e-05,2]
[395107826,1764440649912,151.3,2.8e-05,2]
[395107827,1764440650196,151.3,3e-05,2]
[395107828,1764440650503,151.3,3.1e-05,2]
[395107829,1764440650814,151.3,3.2e-05,2]
[395107830,1764440651121,151.3,3.3e-05,2]
[395107831,1764440651405,151.3,3.4e-05,2]
[395107832,1764440651744,151.3,3.5e-05,2]
[395107833,1764440652115,151.3,3.6e-05,2]
[395107834,1764440702258,300.0,0.00011411,2]
[395107835,1764440702900,152.17,1e-05,2]
[395107836,1764440703210,152.17,1.1e-05,2]
[395107837,1764440703577,152.17,1.2e-05,2]
[395107838,1764440703937,152.17,1.3e-05,2]
[395107839,1764440704235,152.17,1.4e-05,2]
[395107840,1764440704651,152.17,1.5e-05,2]
[395107841,1764440704967,152.17,1.6e-05,2]
[395107842,1764440705929,97.33072268,1.7e-05,2]
[395107843,1764440705953,54.83927732,1.7e-05,2]
[395107844,1764440706252,152.17,1.7e-05,2]
[395107845,1764440706543,152.17,1.8e-05,2]
[395107846,1764440706918,152.17,1.9e-05,2]
[395107847,1764440707262,152.17,2e-05,2]
[395107848,1764440707523,152.17,2.1e-05,2]
[395107849,1764440707933,152.17,2.2e-05,2]
[395107850,1764440708279,152.17,2.3e-05,2]
[395107851,1764440708640,152.17,2.4e-05,2]
[395107852,1764440708991,152.17,2.5e-05,2]
[395107853,1764440709290,152.17,2.6e-05,2]
[395107854,1764440709724,152.17,2.7e-05,2]
[395107855,1764440710092,152.17,2.8e-05,2]
[395107856,1764440710397,152.17,2.9e-05,2]
[395107857,1764440710779,152.17,3e-05,2]
[395107858,1764440711054,152.17,3.1e-05,2]
[395107859,1764440711341,152.17,3.1e-05,2]
[395107860,1764440711647,152.17,3.2e-05,2]
[395107861,1764440711959,152.17,3.3e-05,2]
[395107862,1764440712240,152.17,3.4e-05,2]
[395107863,1764440712647,152.17,3.5e-05,2]
[395107864,1764440712955,152.17,3.6e-05,2]
[395107865,1764440716334,300.0,0.00011298,2]
[395107866,1764440723760,160.0,5.9e-07,2]
[395107868,1764440724803,160.0,5.9e-07,2]
[395107869,1764440725856,160.0,5.9e-07,2]
[395107870,1764440726944,160.0,5.9e-07,2]
[395107871,1764440728002,160.0,5.9e-07,2]
[395107872,1764440731059,160.0,5.9e-07,2]
[395107873,1764440732315,160.0,5.9e-07,2]
[395107874,1764440748297,328.43632015,0.00011031,2]
[395107875,1764440751039,374.98043866,0.00011031,2]
[395107876,1764440762213,154.03,1e-05,2]
[395107877,1764440762490,154.03,1.1e-05,2]
[395107878,1764440762698,300.0,0.00011411,2]
[395107879,1764440762817,154.03,1.1e-05,2]
[395107880,1764440763116,154.03,1.2e-05,2]
[395107881,1764440763443,154.03,1.3e-05,2]
[395107882,1764440763728,154.03,1.4e-05,2]
[395107883,1764440764036,154.03,1.4e-05,2]
[395107884,1764440764328,154.03,1.5e-05,2]
[395107885,1764440764621,154.03,1.6e-05,2]
[395107886,1764440764965,154.03,1.7e-05,2]
[395107887,1764440765274,154.03,1.7e-05,2]
[395107888,1764440765703,154.03,1.8e-05,2]
[395107889,1764440765930,154.03,1.9e-05,2]
[395107890,1764440766266,154.03,1.9e-05,2]
[395107891,1764440766562,154.03,2e-05,2]
[395107892,1764440766916,154.03,2.1e-05,2]
[395107893,1764440767214,154.03,2.2e-05,2]
[395107894,1764440767504,154.03,2.2e-05,2]
[395107895,1764440767824,154.03,2.3e-05,2]
[395107896,1764440768126,154.03,2.4e-05,2]
[395107897,1764440768435,154.03,2.5e-05,2]
[395107898,1764440768751,154.03,2.5e-05,2]
[395107899,1764440769049,154.03,2.6e-05,2]
[395107900,1764440769362,154.03,2.7e-05,2]
[395107901,1764440769658,154.03,2.7e-05,2]
[395107902,1764440769979,154.03,2.8e-05,2]
[395107903,1764440770261,154.03,2.9e-05,2]
[395107904,1764440770567,154.03,3e-05,2]
[395107905,1764440771548,13.34396387,3e-05,2]
[395107906,1764440771570,140.68603613,3e-05,2]
[395107907,1764440771917,154.03,3.1e-05,2]
[395107908,1764440772320,154.03,3.2e-05,2]
[395107909,1764440772597,154.03,3.2e-05,2]
[395107910,1764440772947,154.03,3.3e-05,2]
[395107911,1764440773250,154.03,3.4e-05,2]
[395107912,1764440773561,154.03,3.5e-05,2]
[395107913,1764440773985,154.03,3.5e-05,2]
[395107914,1764440774331,154.03,3.6e-05,2]
[395107915,1764440822509,300.0,0.00011411,2]
[395107916,1764440822543,151.49,1e-05,2]
[395107917,1764440822921,151.49,1.1e-05,2]
[395107918,1764440823343,151.49,1.1e-05,2]
[395107919,1764440823645,151.49,1.2e-05,2]
[395107920,1764440823943,151.49,1.3e-05,2]
[395107921,1764440833310,151.49,1.3e-05,2]
[395107922,1764440833647,151.49,1.4e-05,2]
[395107923,1764440833982,151.49,1.5e-05,2]
[395107924,1764440834611,151.49,1.5e-05,2]
[395107925,1764440834903,151.49,1.6e-05,2]
[395107926,1764440835216,151.49,1.7e-05,2]
[395107927,1764440835547,151.49,1.7e-05,2]
[395107928,1764440835858,151.49,1.8e-05,2]
[395107929,1764440836146,151.49,1.9e-05,2]
[395107930,1764440836430,151.49,1.9e-05,2]
[395107931,1764440836734,151.49,2e-05,2]
[395107932,1764440837048,151.49,2.1e-05,2]
[395107933,1764440837344,151.49,2.1e-05,2]
[395107934,1764440837654,151.49,2.2e-05,2]
[395107935,1764440837956,151.49,2.3e-05,2]
[395107936,1764440838247,151.49,2.3e-05,2]
[395107937,1764440838546,151.49,2.4e-05,2]
[395107938,1764440838836,151.49,2.5e-05,2]
[395107939,1764440839119,151.49,2.5e-05,2]
[395107940,1764440839492,151.49,2.6e-05,2]
[395107941,1764440839817,151.49,2.7e-05,2]
[395107942,1764440840109,151.49,2.7e-05,2]
[395107943,1764440840575,151.49,2.8e-05,2]
[395107944,1764440841046,151.49,2.9e-05,2]
[395107945,1764440841179,151.49,2.9e-05,2]
[395107946,1764440841575,151.49,3e-05,2]
[395107947,1764440841868,151.49,3.1e-05,2]
[395107948,1764440842163,151.49,3.1e-05,2]
[395107949,1764440842473,151.49,3.2e-05,2]
[395107950,1764440842748,151.49,3.3e-05,2]
[395107951,1764440843038,151.49,3.3e-05,2]
[395107952,1764440843317,151.49,3.4e-05,2]
[395107953,1764440843609,151.49,3.5e-05,2]
[395107954,1764440843906,151.49,3.5e-05,2]
[395107955,1764440844196,151.49,3.6e-05,2]
[395107956,1764440849123,-1089.78649566,0.00011412,2]
[395107957,1764440882901,150.78,1e-05,2]
[395107958,1764440883213,150.78,1.1e-05,2]
[395107959,1764440883300,300.0,0.00011411,2]
[395107960,1764440883562,150.78,1.1e-05,2]
[395107961,1764440883855,150.78,1.2e-05,2]
[395107962,1764440884159,150.78,1.3e-05,2]
[395107963,1764440884447,150.78,1.3e-05,2]
[395107964,1764440884907,150.78,1.4e-05,2]
[395107965,1764440885222,150.78,1.4e-05,2]
[395107966,1764440885525,150.78,1.5e-05,2]
[395107967,1764440885829,150.78,1.6e-05,2]
[395107968,1764440886130,150.78,1.6e-05,2]
[395107969,1764440886518,150.78,1.7e-05,2]
[395107970,1764440886827,150.78,1.8e-05,2]
[395107971,1764440887139,7.34396387,1.8e-05,2]
[395107972,1764440887162,143.43603613,1.8e-05,2]
[395107973,1764440887467,150.78,1.9e-05,2]
[395107974,1764440887752,150.78,2e-05,2]
[395107975,1764440888069,150.78,2e-05,2]
[395107976,1764440888344,150.78,2.1e-05,2]
[395107977,1764440888637,150.78,2.1e-05,2]
[395107978,1764440889016,150.78,2.2e-05,2]
[395107979,1764440889335,150.78,2.3e-05,2]
[395107980,1764440889672,150.78,2.3e-05,2]
[395107981,1764440889986,150.78,2.4e-05,2]
[395107982,1764440890267,150.78,2.5e-05,2]
[395107983,1764440891248,150.78,2.5e-05,2]
[395107984,1764440891565,150.78,2.6e-05,2]
[395107985,1764440891854,150.78,2.7e-05,2]
[395107986,1764440892326,150.78,2.7e-05,2]
[395107987,1764440892613,150.78,2.8e-05,2]
[395107988,1764440892745,150.78,2.8e-05,2]
[395107989,1764440893076,150.78,2.9e-05,2]
[395107990,1764440893410,150.78,3e-05,2]
[395107991,1764440893753,150.78,3e-05,2]
[395107992,1764440894081,150.78,3.1e-05,2]
[395107993,1764440894379,150.78,3.2e-05,2]